bitfinex/quotes_ETHUSD_20241009
["timestamp","ask_amount","ask_price","bid_price","bid_amount"]
[1728444135932,0.07501617,2450.9,2450.5,4.9022]
[1728444136133,0.07501617,2450.9,2450.6,0.54041953]
[1728444136936,0.07501617,2450.9,2450.6,4.62103953]
[1728444138058,0.07501617,2450.9,2450.6,0.54041953]
[1728444138236,0.07501617,2450.9,2450.5,4.08068]
[1728444138237,0.7597,2450.8,2450.5,4.08068]
[1728444138563,0.07476061,2450.7,2450.5,4.08068]
[1728444138777,0.7597,2450.8,2450.5,4.08068]
[1728444138943,0.07467581,2450.6,2450.5,4.08068]
[1728444139130,0.7597,2450.8,2450.5,4.08068]
[1728444139478,0.7597,2450.8,2450.6,0.45826753]
[1728444139776,0.7597,2450.8,2450.4,0.50199531]
[1728444139931,0.7597,2450.8,2450.3,5.7959731]
[1728444139932,4.84013,2450.8,2450.3,5.0199531]
[1728444141497,0.7597,2450.8,2450.4,4.08094]
[1728444141693,0.7597,2450.8,2450.4,0.91008131]
[1728444141898,0.7597,2450.8,2450.3,4.08104]
[1728444142188,4.84004,2450.8,2450.3,4.08104]
[1728444142404,4.08048,2450.7,2450.2,4.08127]
[1728444142688,8.58745201,2450.8,2450.2,4.08127]
[1728444142859,12.66789201,2450.8,2450.2,4.975704]
[1728444143259,4.08047,2450.7,2450.2,4.975704]
[1728444143764,4.84004,2450.8,2450.2,4.975704]
[1728444143970,4.84004,2450.8,2450.3,4.0811]
[1728444144458,0.7597,2450.8,2450.4,0.8262]
[1728444144787,4.90633,2451.1,2450.5,4.08071]
[1728444145471,4.90633,2451.1,2450.5,8.16141]
[1728444145667,4.90633,2451.1,2450.5,4.979441]
[1728444146193,4.90633,2451.1,2450.6,4.08053]
[1728444146591,4.90633,2451.1,2450.5,4.979441]
[1728444146592,0.8264,2451.1,2450.5,4.979441]
[1728444146823,0.8264,2451.1,2450.5,9.060101]
[1728444146959,0.8264,2451.1,2450.6,5.0692301]
[1728444147660,0.0752017,2451.0,2450.6,0.9886301]
[1728444147860,0.0752017,2451.0,2450.5,4.08066]
[1728444148879,0.0752017,2451.0,2450.5,8.16133]
[1728444149408,0.0752017,2451.0,2450.5,4.08066]
[1728444149925,4.1551717,2451.0,2450.5,4.08066]
[1728444150413,1.80411143,2451.0,2450.5,4.08066]
[1728444150907,1.80411143,2451.0,2450.5,8.16137]
[1728444151262,1.80411143,2451.0,2450.5,4.08066]
[1728444152006,5.88408143,2451.0,2450.5,4.08066]
[1728444152716,1.72890973,2450.8,2450.3,8.16206]
[1728444153010,1.72890973,2450.8,2450.3,4.08103]
[1728444153170,0.07480144,2450.7,2450.3,4.08103]
[1728444153504,4.88192,2450.9,2450.3,4.08103]
[1728444153812,0.07468797,2450.6,2450.3,4.977511]
[1728444154104,0.0745745,2450.5,2450.3,4.977511]
[1728444154467,8.96214,2450.9,2450.3,4.977511]
[1728444154668,4.83505,2450.7,2450.1,4.08138]
[1728444154969,0.07468797,2450.6,2450.1,4.08138]
[1728444155902,0.07468797,2450.6,2450.2,4.08127]
[1728444157830,0.07468797,2450.6,2450.1,4.08138]
[1728444158024,0.07468797,2450.6,2450.1,8.16273]
[1728444158193,0.07468797,2450.6,2450.1,9.059503]
[1728444158701,0.07468797,2450.6,2450.1,4.978123]
[1728444159670,0.07468797,2450.6,2450.2,4.08126]
[1728444161429,0.07468797,2450.6,2450.3,4.08109]
[1728444161643,0.07468797,2450.6,2450.4,1.176309]
[1728444161940,0.07468797,2450.6,2450.4,0.408109]
[1728444162801,0.07468797,2450.6,2450.4,4.489039]
[1728444164335,0.07468797,2450.6,2450.4,0.408109]
[1728444165508,0.07468797,2450.6,2450.4,4.489039]
[1728444165711,0.07468797,2450.6,2450.5,0.8570069]
[1728444166632,4.86344,2450.9,2450.5,0.8570069]
[1728444166833,0.07421001,2450.6,2450.5,0.8570069]
[1728444167443,4.86344,2450.9,2450.5,0.8570069]
[1728444167645,0.07421001,2450.6,2450.5,0.8570069]
[1728444167854,4.86344,2450.9,2450.5,0.8570069]
[1728444168026,0.07421001,2450.6,2450.5,0.8570069]
[1728444168207,4.86344,2450.9,2450.5,0.8570069]
[1728444168411,0.07421001,2450.6,2450.5,0.8570069]
[1728444168626,4.86344,2450.9,2450.5,0.8570069]
[1728444168852,0.07421001,2450.6,2450.5,4.9377969]
[1728444169025,0.7833,2450.9,2450.5,0.8332]
[1728444169228,0.07422061,2450.6,2450.5,4.91389]
[1728444169430,0.7833,2450.9,2450.5,4.91389]
[1728444169626,0.07422061,2450.6,2450.5,4.91389]
[1728444169839,0.7968,2451.1,2450.6,4.0805]
[1728444170347,0.07467441,2451.0,2450.6,4.0805]
[1728444170553,0.07467441,2451.0,2450.6,4.979939]
[1728444171281,0.07467441,2451.0,2450.7,4.08044]
[1728444171766,0.0745774,2450.9,2450.6,4.979939]
[1728444171930,0.0745774,2450.9,2450.7,4.08046]
[1728444172131,0.8309,2451.2,2450.7,4.08046]
[1728444172366,0.07446396,2450.8,2450.7,0.9893599]
[1728444172569,0.8309,2451.2,2450.7,0.9893599]
[1728444172871,0.8309,2451.2,2450.8,4.87059]
[1728444173550,4.07931,2451.4,2450.8,4.87059]
[1728444173755,0.8299,2451.4,2451.0,4.07995]
[1728444174155,4.90899,2451.6,2451.0,4.07995]
[1728444174335,4.90899,2451.6,2451.1,0.407995]
[1728444174974,4.90899,2451.6,2451.1,4.487695]
[1728444175883,0.8299,2451.6,2451.1,4.487695]
[1728444176637,0.8299,2451.6,2451.2,0.7635]
[1728444177248,0.8299,2451.6,2451.2,4.84298]
[1728444177449,0.8299,2451.6,2451.3,0.5250975]
[1728444177860,0.07291743,2451.5,2451.3,0.5250975]
[1728444180096,4.89207,2451.8,2451.3,0.5250975]
[1728444180266,4.89207,2451.8,2451.3,4.6045275]
[1728444180267,0.07280405,2451.4,2451.3,4.6045275]
[1728444180467,0.8134,2451.8,2451.3,0.5250975]
[1728444180666,4.84491,2452.0,2451.5,4.0791]
[1728444180866,4.84491,2452.0,2451.6,0.8003]
[1728444182243,0.7665,2452.0,2451.6,4.87926]
[1728444182555,0.7665,2452.0,2451.6,0.8003]
[1728444183262,4.84481,2452.0,2451.6,0.8003]
[1728444183980,6.57371973,2452.0,2451.6,0.8003]
[1728444184190,6.57371973,2452.0,2451.6,1.34192978]
[1728444184370,4.84481,2452.0,2451.6,1.34192978]
[1728444185455,4.07831,2452.0,2451.6,1.34192978]
[1728444186278,1.72890973,2452.1,2451.6,1.34192978]
[1728444186485,4.83752,2452.2,2451.6,1.34192978]
[1728444186663,4.07825,2452.1,2451.7,0.54210098]
[1728444186864,4.07825,2452.1,2451.6,1.34192978]
[1728444187458,4.07802,2452.2,2451.6,1.34192978]
[1728444187689,4.07802,2452.2,2451.6,4.87914]
[1728444187889,4.07821,2452.1,2451.6,0.8003]
[1728444189162,2.51140973,2452.4,2451.4,1.33250775]
[1728444189163,4.0786,2451.9,2451.4,1.33250775]
[1728444189569,10.62302919,2452.5,2451.5,0.767]
[1728444189787,10.62302919,2452.5,2451.4,0.53680775]
[1728444189788,7.07773,2452.4,2451.8,4.07853]
[1728444189975,4.07773,2452.4,2451.9,0.484553]
[1728444190183,1.72890973,2452.5,2452.0,4.07828]
[1728444190395,4.8911,2452.6,2452.1,1.2232833]
[1728444190599,8.96857,2452.6,2452.1,0.767]
[1728444191294,4.0775,2452.5,2451.9,5.319993]
[1728444192577,4.14898586,2452.4,2451.9,1.241653]
[1728444192799,4.14898586,2452.4,2451.9,0.7571]
[1728444193716,0.07134586,2452.4,2451.9,4.83547]
[1728444194021,4.8911,2452.6,2452.0,4.07827]
[1728444194219,0.0712612,2452.3,2452.0,4.07827]
[1728444194392,8.9685,2452.6,2452.2,0.8002]
[1728444194393,4.8911,2452.6,2452.2,0.8002]
[1728444194730,4.0774,2452.6,2452.2,0.8002]
[1728444194884,4.90547,2452.8,2452.2,0.8002]
[1728444194885,4.90547,2452.8,2452.2,4.87814]
[1728444195597,4.90547,2452.8,2452.3,4.07778]
[1728444195598,4.07707,2452.8,2452.3,4.07778]
[1728444195799,4.07707,2452.8,2452.2,4.87814]
[1728444195800,4.07707,2452.8,2452.4,0.895592]
[1728444196126,4.07735,2452.6,2452.2,0.8002]
[1728444196427,8.93476,2452.6,2452.2,0.8002]
[1728444196732,4.85735,2452.6,2452.2,0.8002]
[1728444197332,4.07767,2452.4,2452.2,0.8002]
[1728444199274,4.0775,2452.5,2452.2,0.8002]
[1728444199584,4.85735,2452.6,2452.2,0.8002]
[1728444200249,0.20457663,2453.3,2452.2,1.288047]
[1728444200451,4.88915,2453.0,2452.3,0.8029]
[1728444200666,4.07681,2452.9,2452.3,0.8029]
[1728444200868,4.07698,2452.8,2452.3,0.8029]
[1728444201087,4.88915,2453.0,2452.4,0.895865]
[1728444201248,8.96593,2453.0,2452.4,0.895865]
[1728444201664,4.07684,2452.9,2452.4,0.895865]
[1728444202993,8.93288,2452.6,2452.0,1.237124]
[1728444203491,4.85543,2452.6,2452.0,5.315414]
[1728444204064,4.85543,2452.6,2452.0,1.237124]
[1728444204264,4.85543,2452.6,2452.1,4.6096564]
[1728444206084,4.85541,2452.6,2452.1,0.5315464]
[1728444206486,4.07747,2452.5,2452.1,0.5315464]
[1728444206689,0.78,2452.5,2451.8,0.7685]
[1728444206849,4.078,2452.2,2451.8,0.7685]
[1728444207651,0.06611837,2452.1,2451.6,7.90255]
[1728444207876,0.06611837,2452.1,2451.7,1.198159]
[1728444208613,0.06611837,2452.1,2451.8,4.07862]
[1728444208763,0.06611837,2452.1,2451.7,9.355659]
[1728444208969,4.07792,2452.3,2451.7,9.355659]
[1728444209152,4.07792,2452.3,2451.7,5.276859]
[1728444209354,0.8035,2452.1,2451.7,1.198159]
[1728444209691,0.0659902,2452.0,2451.6,7.90246]
[1728444210576,0.0659902,2452.0,2451.6,3.8236]
[1728444210785,0.0659902,2452.0,2451.6,0.8236]
[1728444210972,0.0659902,2452.0,2451.6,4.90242]
[1728444211602,4.90904,2452.4,2451.9,0.7918]
[1728444211799,4.90904,2452.4,2451.9,5.765104]
[1728444212071,4.07781,2452.3,2451.9,1.686684]
[1728444212272,8.98682,2452.4,2451.9,1.686684]
[1728444212501,4.90904,2452.4,2451.7,0.7877]
[1728444212740,4.90904,2452.4,2451.8,4.07863]
[1728444212741,4.07795,2452.3,2451.8,4.07863]
[1728444213124,4.07797,2452.2,2451.7,0.7877]
[1728444213320,0.7538,2452.1,2451.7,0.7877]
[1728444214606,4.83202,2452.1,2451.5,4.07908]
[1728444214810,4.07833,2452.0,2451.6,1.16950778]
[1728444215321,0.7538,2452.1,2451.6,1.16950778]
[1728444216210,4.83199,2452.1,2451.6,1.16950778]
[1728444216505,4.83199,2452.1,2451.6,5.24846778]
[1728444216705,0.7538,2452.1,2451.6,5.24837778]
[1728444216903,0.8307,2452.4,2451.9,4.07845]
[1728444217724,0.8307,2452.4,2452.0,4.0783]
[1728444217942,0.8307,2452.4,2451.8,4.07848]
[1728444218126,0.8307,2452.4,2451.9,4.62937478]
[1728444222764,0.06391804,2452.3,2451.9,4.62937478]
[1728444224449,0.06391804,2452.3,2451.9,0.55093478]
[1728444224657,0.7992,2452.1,2451.7,0.8265]
[1728444224952,0.06363906,2452.0,2451.7,0.8265]
[1728444226347,0.06363906,2452.0,2451.8,4.07854]
[1728444226549,0.06363906,2452.0,2451.9,4.07846]
[1728444226886,0.06354757,2452.0,2451.9,4.07846]
[1728444227089,0.06354757,2452.0,2451.9,4.97681]
[1728444227291,0.8178,2452.4,2451.9,4.97681]
[1728444227527,0.0636677,2452.0,2451.9,4.97681]
[1728444227731,0.8178,2452.4,2451.9,4.97681]
[1728444228613,4.89544,2452.4,2451.9,4.97681]
[1728444228805,0.06391804,2452.3,2451.9,0.89835]
[1728444231299,0.06391804,2452.3,2452.0,0.497689]
[1728444231828,0.06391804,2452.3,2452.1,0.8157]
[1728444234236,0.06390119,2452.2,2452.1,0.8157]
[1728444234423,4.86644,2452.6,2452.1,0.8157]
[1728444234629,4.86644,2452.6,2452.2,0.5391579]
[1728444237327,4.07748,2452.5,2452.2,0.5391579]
[1728444237767,0.06412781,2452.4,2452.2,0.5391579]
[1728444238879,4.14175781,2452.4,2452.0,0.497689]
[1728444240249,0.06412781,2452.4,2452.0,4.575879]
[1728444242027,0.06412781,2452.4,2452.0,0.497689]
[1728444242355,0.06412781,2452.4,2451.8,8.97306]
[1728444242784,4.14176781,2452.4,2451.8,4.89453]
[1728444242940,0.8142,2452.3,2451.8,4.89453]
[1728444243450,4.89209,2452.3,2451.8,4.89453]
[1728444243661,0.06176156,2452.2,2451.8,4.89453]
[1728444243829,0.8142,2452.3,2451.8,2.013341]
[1728444244033,0.8142,2452.3,2451.6,11.92961]
[1728444244034,0.06164823,2452.1,2451.6,11.92961]
[1728444244230,4.07801,2452.2,2451.6,7.85074]
[1728444244231,4.13977156,2452.2,2451.6,7.85074]
[1728444244488,0.06156539,2452.0,2451.6,11.92961]
[1728444244689,4.07801,2452.2,2451.7,1.13184389]
[1728444244971,0.06148255,2451.9,2451.6,4.85074]
[1728444245175,4.07801,2452.2,2451.6,4.85074]
[1728444245349,0.06139784,2451.8,2451.6,4.85074]
[1728444245679,0.06119483,2451.7,2451.6,4.85074]
[1728444245881,4.07801,2452.2,2451.6,4.85074]
[1728444246036,0.06128448,2451.7,2451.6,5.95776516]
[1728444246263,4.07801,2452.2,2451.6,5.95776516]
[1728444246961,0.06170922,2452.1,2451.6,5.95776516]
[1728444247361,0.06170922,2452.1,2451.6,4.85074]
[1728444247556,0.8142,2452.3,2451.8,4.07853]
[1728444247904,0.06182255,2452.2,2451.8,4.07853]
[1728444248371,4.89211,2452.3,2451.8,4.07853]
[1728444248706,0.06178122,2452.2,2451.8,4.07853]
[1728444248996,0.06178122,2452.2,2451.9,0.407853]
[1728444249197,4.89211,2452.3,2451.9,0.407853]
[1728444249384,0.0616069,2452.1,2451.9,0.407853]
[1728444249700,0.06152406,2452.0,2451.9,0.407853]
[1728444249880,0.8142,2452.3,2451.8,4.07853]
[1728444250195,0.0616137,2452.0,2451.8,4.07853]
[1728444250396,0.8142,2452.3,2451.8,4.07853]
[1728444250697,4.8921,2452.3,2451.8,4.07853]
[1728444250882,0.06178122,2452.2,2451.8,4.07853]
[1728444251209,4.8921,2452.3,2451.8,4.971458]
[1728444251498,0.06172704,2452.1,2451.8,4.971458]
[1728444251699,4.8921,2452.3,2451.8,4.971458]
[1728444251857,0.05940524,2452.0,2451.8,4.971458]
[1728444252060,4.8921,2452.3,2451.8,4.971458]
[1728444252300,0.05932054,2451.9,2451.8,4.971458]
[1728444252509,4.8921,2452.3,2451.8,4.971458]
[1728444252798,0.05932054,2451.9,2451.8,4.971458]
[1728444253003,4.8921,2452.3,2451.8,0.892928]
[1728444253184,0.05932054,2451.9,2451.6,4.85075]
[1728444253365,4.87491,2451.7,2451.2,2.96008]
[1728444253558,6.60159301,2451.7,2451.2,0.8194]
[1728444253830,6.60159301,2451.7,2451.2,2.447297]
[1728444254137,0.05898218,2451.6,2451.2,2.447297]
[1728444256224,0.05898218,2451.6,2451.2,6.526867]
[1728444256425,0.05898218,2451.6,2451.2,4.89897]
[1728444257918,0.05898218,2451.6,2451.2,0.8194]
[1728444258220,0.7957,2451.4,2451.0,4.07989]
[1728444258395,0.7957,2451.4,2451.0,5.275718]
[1728444258591,0.05861863,2451.3,2451.0,5.275718]
[1728444259639,0.05861863,2451.3,2451.0,1.195828]
[1728444259946,0.05861863,2451.3,2451.0,5.275628]
[1728444260937,0.05861863,2451.3,2451.0,9.355478]
[1728444261136,0.05861863,2451.3,2451.1,1.3153678]
[1728444263312,0.05861863,2451.3,2451.0,4.0798]
[1728444267514,0.05861863,2451.3,2450.8,4.08022]
[1728444267850,0.05861863,2451.3,2450.8,8.1604]
[1728444268151,0.05861863,2451.3,2450.8,4.08018]
[1728444268647,0.05861863,2451.3,2450.8,8.16038]
[1728444268828,0.05861863,2451.3,2450.9,4.896158]
[1728444273200,0.05861863,2451.3,2450.9,0.816038]
[1728444273409,0.05861863,2451.3,2450.8,4.08018]
[1728444274200,0.05861863,2451.3,2450.8,8.16038]
[1728444274502,0.05861863,2451.3,2450.8,4.08018]
[1728444274694,0.05861863,2451.3,2450.8,8.16038]
[1728444276315,0.05861863,2451.3,2451.0,4.07994]
[1728444276529,0.05861863,2451.3,2451.1,0.407994]
[1728444277775,0.05861863,2451.3,2451.2,4.07963]
[1728444278433,0.7695,2451.6,2451.2,4.07963]
[1728444278581,0.0548448,2451.3,2451.2,4.07963]
[1728444278883,0.7695,2451.6,2451.3,4.07937]
[1728444279718,0.7695,2451.6,2451.3,8.15874]
[1728444279919,0.7695,2451.6,2451.4,0.815874]
[1728444282395,4.89856,2451.8,2451.4,0.815874]
[1728444282829,0.05530976,2451.7,2451.4,0.815874]
[1728444283123,4.89856,2451.8,2451.4,0.815874]
[1728444283317,0.05530976,2451.7,2451.4,0.815874]
[1728444283519,4.89856,2451.8,2451.4,0.815874]
[1728444283707,0.05530976,2451.7,2451.4,0.815874]
[1728444283906,4.89856,2451.8,2451.4,0.815874]
[1728444284106,0.05530976,2451.7,2451.4,0.815874]
[1728444284323,4.89856,2451.8,2451.4,0.815874]
[1728444284525,0.05530976,2451.7,2451.4,0.815874]
[1728444284725,4.89856,2451.8,2451.4,0.815874]
[1728444285024,0.05530976,2451.7,2451.4,0.815874]
[1728444285195,0.05530976,2451.7,2451.5,0.4895244]
[1728444285384,0.8199,2451.8,2451.5,4.07904]
[1728444285584,0.05520266,2451.6,2451.5,4.07904]
[1728444285819,0.8199,2451.8,2451.5,8.15807]
[1728444286022,0.05520266,2451.6,2451.5,4.07903]
[1728444286228,0.7802,2452.0,2451.5,8.15806]
[1728444286424,0.05520266,2451.6,2451.5,8.15806]
[1728444286628,0.7802,2452.0,2451.5,4.07903]
[1728444286791,0.7802,2452.0,2451.7,4.07879]
[1728444288628,0.7802,2452.0,2451.5,4.07904]
[1728444288822,0.7802,2452.0,2451.6,0.485714]
[1728444291503,0.7802,2452.0,2451.6,4.564644]
[1728444292434,0.7802,2452.0,2451.6,0.485714]
[1728444293294,0.7802,2452.0,2451.6,4.564564]
[1728444295217,4.8586,2452.0,2451.6,0.485714]
[1728444295426,0.7917,2451.8,2451.3,4.07939]
[1728444296438,0.7917,2451.8,2451.3,8.15876]
[1728444296636,0.7417,2451.8,2451.4,0.893296]
[1728444297741,0.0553297,2451.7,2451.4,0.893296]
[1728444297915,4.82035,2451.8,2451.4,0.893296]
[1728444298116,0.0553297,2451.7,2451.3,4.07937]
[1728444298317,4.82035,2451.8,2451.3,4.07937]
[1728444298520,0.05530649,2451.7,2451.3,4.07937]
[1728444298842,4.82042,2451.8,2451.2,4.07962]
[1728444299147,0.05530649,2451.7,2451.3,0.815932]
[1728444299300,4.82042,2451.8,2451.3,4.07946]
[1728444299500,0.05530649,2451.7,2451.3,4.07946]
[1728444299725,4.82042,2451.8,2451.3,4.07946]
[1728444299948,0.05530649,2451.7,2451.3,4.07946]
[1728444300101,0.7417,2451.8,2451.3,4.895376]
[1728444300303,0.0553297,2451.7,2451.3,4.895376]
[1728444300544,0.7417,2451.8,2451.3,8.974836]
[1728444300842,0.0553297,2451.7,2451.4,4.0792]
[1728444301010,0.0553297,2451.7,2451.3,4.895376]
[1728444301216,0.7417,2451.8,2451.4,0.4895376]
[1728444301436,0.05521633,2451.6,2451.4,0.4895376]
[1728444301607,0.7417,2451.8,2451.4,0.4895376]
[1728444301805,0.05510295,2451.5,2451.4,0.4895376]
[1728444302050,0.7417,2451.8,2451.4,4.5688076]
[1728444302201,0.05510295,2451.5,2451.4,0.4895376]
[1728444302407,0.7417,2451.8,2451.4,0.4895376]
[1728444302674,0.05510295,2451.5,2451.4,0.4895376]
[1728444302847,0.7417,2451.8,2451.4,0.4895376]
[1728444303139,0.7417,2451.8,2451.4,4.5688376]
[1728444303436,0.05527334,2451.7,2451.4,4.5688376]
[1728444303639,0.05527334,2451.7,2451.6,4.07896]
[1728444303844,0.7606,2452.1,2451.6,4.90156]
[1728444304053,0.05524077,2451.7,2451.6,4.90156]
[1728444304252,0.7606,2452.1,2451.7,8.15758]
[1728444304402,0.7606,2452.1,2451.9,4.07846]
[1728444304849,0.7606,2452.1,2451.8,4.07858]
[1728444306505,0.7606,2452.1,2451.7,9.15029708]
[1728444306744,0.7606,2452.1,2451.8,0.58942171]
[1728444307011,0.7606,2452.1,2451.9,4.07846]
[1728444307248,0.7606,2452.1,2451.8,0.58942171]
[1728444307249,0.7606,2452.1,2451.8,4.66803171]
[1728444307433,0.7638,2452.3,2451.9,0.87467117]
[1728444307652,0.7638,2452.3,2451.9,4.95313117]
[1728444309158,4.84161,2452.3,2451.9,0.87467117]
[1728444309712,0.7638,2452.3,2451.8,4.0786]
[1728444309917,0.7638,2452.3,2451.7,4.07868]
[1728444310126,0.7638,2452.3,2451.9,4.07846]
[1728444310352,0.7638,2452.3,2451.9,4.894174]
[1728444310654,0.7638,2452.3,2451.9,0.815714]
[1728444311025,4.8416,2452.3,2451.9,0.815714]
[1728444311614,8.91949,2452.3,2451.9,0.815714]
[1728444311827,4.0783,2452.0,2451.5,4.07904]
[1728444312719,0.05553114,2451.9,2451.5,4.07904]
[1728444312915,0.05553114,2451.9,2451.6,0.484334]
[1728444313747,0.7743,2451.8,2451.6,0.484334]
[1728444313968,0.82971779,2451.8,2451.3,4.07938]
[1728444314170,0.82971779,2451.8,2451.5,4.07912]
[1728444314377,0.05541779,2451.8,2451.5,8.92674]
[1728444314730,0.7743,2452.0,2451.5,8.92674]
[1728444314933,0.05530956,2451.7,2451.6,4.971634]
[1728444315235,0.7743,2452.2,2451.6,4.971634]
[1728444315532,0.05576295,2452.1,2451.7,4.07877]
[1728444315761,0.05576295,2452.1,2451.8,0.9050404]
[1728444316231,0.05576295,2452.1,2451.8,4.9836504]
[1728444316437,0.05576295,2452.1,2451.8,4.86201]
[1728444316642,0.05576295,2452.1,2451.8,4.07861]
[1728444317145,0.05576295,2452.1,2451.9,4.07846]
[1728444317452,0.05576295,2452.1,2451.9,4.86186]
[1728444317655,0.05576295,2452.1,2452.0,0.894047]
[1728444318179,4.88361,2452.4,2452.0,0.894047]
[1728444318387,0.05576295,2452.1,2452.0,4.972347]
[1728444318554,0.8059,2452.4,2452.0,4.972347]
[1728444318748,0.8059,2452.4,2452.1,0.5755747]
[1728444319075,0.8059,2452.4,2452.0,0.894047]
[1728444321553,0.8059,2452.4,2452.0,4.972327]
[1728444321749,4.07707,2452.8,2452.0,0.894047]
[1728444321750,0.8059,2452.7,2452.0,0.894047]
[1728444321970,0.8059,2452.7,2452.2,4.07787]
[1728444322298,4.88309,2452.7,2452.2,4.07787]
[1728444322885,0.8059,2452.7,2452.2,4.07787]
[1728444323587,0.8059,2452.7,2452.2,8.15574]
[1728444323791,0.8059,2452.7,2452.2,8.15572]
[1728444323965,0.8059,2452.7,2452.2,8.1557]
[1728444324161,0.8059,2452.7,2452.3,0.81557]
[1728444326657,0.8059,2452.7,2452.3,4.89328]
[1728444327701,0.05639103,2452.6,2452.3,0.81557]
[1728444335390,0.05639103,2452.6,2452.2,4.88985]
[1728444336501,0.05639103,2452.6,2452.3,4.07778]
[1728444337701,0.05639103,2452.6,2452.2,4.88985]
[1728444337903,0.05639103,2452.6,2452.3,4.0778]
[1728444339526,0.05639103,2452.6,2452.2,4.88985]
[1728444339839,0.05639103,2452.6,2452.2,9.864514]
[1728444340351,0.05639103,2452.6,2452.2,5.786654]
[1728444340549,0.05639103,2452.6,2452.2,4.88985]
[1728444340704,0.05639103,2452.6,2452.2,4.07785]
[1728444341139,4.13381103,2452.6,2452.0,4.89857]
[1728444341346,0.7928,2452.5,2452.0,4.89857]
[1728444341503,0.84907948,2452.5,2452.1,4.07812]
[1728444341703,0.84907948,2452.5,2452.1,4.975789]
[1728444343146,0.84907948,2452.5,2452.2,4.07796]
[1728444343353,0.84907948,2452.5,2452.1,0.897669]
[1728444343506,0.84907948,2452.5,2452.0,4.07817]
[1728444343699,0.84907948,2452.5,2452.1,4.07812]
[1728444344514,0.84907948,2452.5,2452.0,4.07817]
[1728444344719,0.84907948,2452.5,2452.1,4.07812]
[1728444344920,0.84907948,2452.5,2452.0,8.15637]
[1728444345115,0.84907948,2452.5,2452.0,0.897677]
[1728444345444,0.7928,2452.4,2451.7,4.07868]
[1728444345604,0.7928,2452.2,2451.8,4.07859]
[1728444345945,0.05582623,2452.1,2451.8,4.07859]
[1728444346317,0.05582623,2452.1,2451.9,4.07836]
[1728444346628,0.05582623,2452.1,2451.9,8.15674]
[1728444347830,0.05582623,2452.1,2451.9,4.07836]
[1728444354170,4.13408623,2452.1,2451.5,6.2175351]
[1728444354455,4.13408623,2452.1,2451.2,4.29367084]
[1728444354456,4.07848,2451.9,2451.3,8.1587]
[1728444354653,0.8219,2451.8,2451.3,4.07931]
[1728444354854,0.8773708,2451.8,2451.6,4.07896]
[1728444355006,0.8773708,2451.8,2451.5,4.07899]
[1728444356415,0.8773708,2451.8,2451.5,8.15803]
[1728444356750,0.8773708,2451.8,2451.6,0.815803]
[1728444356978,0.8773708,2451.8,2451.5,4.07899]
[1728444357610,0.8773708,2451.8,2451.3,8.15868]
[1728444357807,0.8773708,2451.8,2451.3,4.07932]
[1728444358158,0.8773708,2451.8,2451.4,4.07928]
[1728444360419,0.8773708,2451.8,2451.5,4.0791]
[1728444360624,0.8773708,2451.8,2451.6,0.40791]
[1728444361054,0.8773708,2451.8,2451.5,4.07903]
[1728444362455,0.8773708,2451.8,2451.6,4.07896]
[1728444362659,0.8773708,2451.8,2451.5,4.07903]
[1728444364936,0.8773708,2451.8,2451.3,4.07936]
[1728444365147,0.8773708,2451.8,2451.4,0.47897244]
[1728444365668,0.8773708,2451.8,2451.3,4.07936]
[1728444365836,0.7606,2451.7,2451.3,4.07936]
[1728444366363,0.05509755,2451.6,2451.3,4.07936]
[1728444366602,0.05509755,2451.6,2451.4,4.07921]
[1728444366809,0.05509755,2451.6,2451.3,4.07936]
[1728444366965,0.05509755,2451.6,2451.4,0.407936]
[1728444369069,0.05509755,2451.6,2451.5,4.07913]
[1728444369269,0.05509755,2451.6,2451.5,8.43233]
[1728444369484,7.42,2452.3,2452.0,4.07818]
[1728444369803,0.05544886,2452.2,2452.1,4.07813]
[1728444370103,0.8029,2452.4,2452.1,4.07813]
[1728444370340,0.8029,2452.4,2451.8,4.07857]
[1728444370341,0.05561308,2452.2,2451.8,4.07857]
[1728444370515,4.84201,2452.3,2451.8,4.73732467]
[1728444370659,0.05528859,2452.1,2451.9,4.07836]
[1728444370862,0.05556616,2452.2,2451.9,4.95993947]
[1728444371066,0.05523624,2452.0,2451.9,4.95993947]
[1728444371288,0.7641,2452.3,2451.9,4.95993947]
[1728444371597,4.8419,2452.3,2451.8,4.73734467]
[1728444371799,0.05567173,2452.2,2451.8,4.73734467]
[1728444372099,4.83423,2452.1,2451.5,4.07907]
[1728444372274,4.88960775,2452.1,2451.6,4.07896]
[1728444373069,4.88960775,2452.1,2451.5,8.15811]
[1728444373269,4.88960775,2452.1,2451.6,4.0789]
[1728444373704,8.96784775,2452.1,2451.5,4.07904]
[1728444373900,5.9591402,2452.1,2451.5,4.07904]
[1728444374577,10.0373902,2452.1,2451.5,4.07904]
[1728444375227,5.9591402,2452.1,2451.5,4.07904]
[1728444376805,10.0373702,2452.1,2451.5,4.07904]
[1728444377117,5.9591402,2452.1,2451.5,4.07904]
[1728444378127,5.9591402,2452.1,2451.5,8.15808]
[1728444378578,5.9591402,2452.1,2451.5,4.07904]
[1728444379186,5.9591402,2452.1,2451.3,6.57824672]
[1728444379187,4.0785,2451.9,2451.3,4.85077]
[1728444379385,0.88210858,2451.8,2451.3,5.10110827]
[1728444379682,0.88210858,2451.8,2451.4,4.0792]
[1728444380422,0.88210858,2451.8,2451.5,4.07911]
[1728444381629,0.05490858,2451.8,2451.5,4.86591]
[1728444381828,0.8014,2452.0,2451.5,5.86261183]
[1728444382032,0.05508294,2451.9,2451.5,5.07581183]
[1728444382200,0.05508294,2451.9,2451.5,4.07911]
[1728444385106,0.7571,2451.8,2451.3,5.87430827]
[1728444385303,4.91059,2451.7,2451.1,7.71882597]
[1728444385507,0.8317,2451.6,2451.1,7.71882597]
[1728444385717,0.8317,2451.6,2451.3,4.07945]
[1728444385913,0.05460549,2451.5,2451.3,4.07945]
[1728444386126,0.05460549,2451.5,2451.3,5.01095045]
[1728444389226,0.05460549,2451.5,2451.1,11.79851597]